Cogmind - Beta 16.1 @@@ ROGUE MODE // 2026.03.11 @ 09:34:56 Player: Ragnakor Result: Destroyed by S-10 Pest with Light Assault Rifle Performance ------------- Evolutions (0) 0 Regions Visited (1) 200 Robots Destroyed (19) 95 Value Destroyed (351) 351 Prototype IDs (0) 0 Alien Tech Used (0) 0 Bonus (0) 0 TOTAL SCORE: 646 Bonus ------- None Cogmind --------- Core Integrity 0/250 Matter 300/300 Energy 125/125 System Corruption 0% Temperature Cool (0) Movement Rolling (90) Location -10/Materials Parts ------- > --- POWER (1) -------- Light Ion Engine > --- PROPULSION (2) --- Wheel Compact Wheel > --- UTILITY (2) ------ Seismic Detector > --- WEAPON (2) ------- Assault Rifle > --- INVENTORY (5) ---- Ion Engine Light Ion Engine Light Ion Engine Light Ion Engine Heat Sink Peak State ------------ > --- POWER ------------ Ion Engine > --- PROPULSION ------- Aluminum Leg Aluminum Leg > --- UTILITY ---------- Small Storage Unit Improved Terrain Scanner > --- WEAPON ----------- Assault Rifle Light Assault Rifle > --- INVENTORY -------- Light Ion Engine Light Ion Engine Compact Wheel Seismic Detector EM Pulse Gun Mining Laser [Rating: 9] Favorites ----------- Power Ion Engine Engine Ion Engine Propulsion Aluminum Leg Leg Aluminum Leg Wheel Compact Wheel Flight Unit Flight Unit Utility Seismic Detector Device Seismic Detector Storage Small Storage Unit Weapon Light Assault Rifle Energy Gun Small Laser Ballistic Gun Light Assault Rifle Special Weapon Mining Laser Build | -11 -10 ------- Run | Yrd Mat Slots Evolved . | . . Power . | . . Propulsion . | . . Utility . | . . Weapon . | . . Parts Attached 26 | 7 19 Power 5 | 1 4 Engine 5 | 1 4 Core . | . . Reactor . | . . Propulsion 10 | 2 8 Treads . | . . Leg 4 | 2 2 Wheel 4 | . 4 Hover . | . . Flight 2 | . 2 Utility 4 | 2 2 Device 3 | 1 2 Storage 1 | 1 . Processor . | . . Hackware . | . . Protection . | . . Artifact . | . . Weapon 7 | 2 5 Energy Gun 3 | . 3 Energy Cannon . | . . Ballistic Gun 3 | 2 1 Ballistic Cannon . | . . Launcher . | . . Special Weapon 1 | . 1 Impact Weapon . | . . Slashing Weapon . | . . Piercing Weapon . | . . Special Melee Weapon . | . . Unidentified Prototypes . | . . Parts Lost 12 | . 12 Power . | . . Propulsion 6 | . 6 Utility 2 | . 2 Weapon 4 | . 4 Highest Loss Streak 4 | . 4 To Critical Strikes . | . . Average Backups 4 | 3 4 Power 2 | 1 2 Propulsion . | . . Utility . | . . Weapon . | 1 . Tool/Special . | . . Unused Backups 4 | . 4 Power 2 | . 2 Propulsion 1 | . 1 Utility 1 | . 1 Weapon . | . . Tool/Special . | . . Average Slot Usage (%) 91 | . 91 Engine 14 | . 14 Leg 8 | . 8 Wheel 5 | . 5 Flight 9 | . 9 Device 25 | . 25 Energy Gun 11 | . 11 Ballistic Gun 9 | . 9 Special Weapon 6 | . 6 Peak Build Rating 9 | 9 9 Average Rating 6 | 5 7 On Entrance 4 | . 9 Avg Prop Armor Cover (%) 9 | . 9 Naked Turns . | . . Heaviest Build 14 | 14 14 Greatest Support 32 | 20 32 Greatest Overweight (x) 3 | . 3 Average Overweight (x) . | . . Largest Inventory Capacity 8 | 8 8 Average Capacity 5 | 7 5 Most Carried 7 | 7 7 Average Carried 4 | 4 4 Final Capacity 8 | 8 5 Final Carried 7 | 7 5 Class Distribution -------------------- 60% | Mutant 39% | Scavenger-Mutant Dominant Class ---------------- Scavenger-Mutant | -10/Materials Resources | -11 -10 ----------- Run | Yrd Mat Matter Collected 549 | 292 257 Remotely . | . . Salvage Created 647 | 170 477 Parts 40 | 13 27 Haulers Intercepted . | . . Recyclers Shooed 2 | . 2 Parts Field Recycled . | . . Retrieved Matter . | . . Parts Self-Destructed . | . . Prevented . | . . Parts Restored . | . . Kills | -11 -10 ------- Run | Yrd Mat Combat Hostiles Destroyed 11 | . 11 Guns 10 | . 10 Cannons 1 | . 1 Classes Destroyed 5 | 3 2 Worker 3 | 1 2 Tunneler 3 | 3 . Recycler 2 | 1 1 Swarmer 3 | . 3 Grunt 8 | . 8 Best Kill Streak 5 | 2 5 Combat Bots Only 3 | . 3 Max Kills in Single Turn 1 | 1 1 Gunslinging . | . . Exploded . | . . Melee . | . . Uniques/NPCs Destroyed . | . . Combat | -11 -10 -------- Run | Yrd Mat Hostile Shots Fired 126 | . 126 Missed 37 | . 37 Hits 89 | . 89 Projectile 89 | . 89 Critical Strikes 1 | . 1 Damage Taken 977 | . 977 Core 252 | . 252 Absorbed by Shields . | . . Core Remaining (%) 100 | 100 . Volleys Fired 72 | 9 63 Largest 2 | 2 2 Hottest 140 | 40 140 Shots Fired 114 | 18 96 Gun 109 | 18 91 Cannon . | . . Launcher . | . . Special 5 | . 5 Kinetic 58 | 18 40 Thermal 49 | . 49 Explosive . | . . Electromagnetic 7 | . 7 Robot Hit Streak 13 | 3 13 Robot Miss Streak 5 | 2 5 Penetration Max . | . . Secondary Targets . | . . Shots Hit Robots 70 | 10 60 Core Hits 32 | 7 25 Critical Kills . | . . Critical Parts Destroyed . | . . Critical Strikes . | . . Melee Attacks . | . . Impact . | . . Slashing . | . . Piercing . | . . Sneak Attacks . | . . Combat Hostiles . | . . Follow-up Attacks . | . . Damage Inflicted 804 | 126 678 Guns 778 | 126 652 Cannons . | . . Explosions . | . . Melee . | . . Ramming 2 | . 2 Kinetic 424 | 126 298 Thermal 354 | . 354 Explosive . | . . Electromagnetic 24 | . 24 Impact . | . . Slashing . | . . Piercing . | . . Highest Corruption . | . . Average Corruption . | . . Corruption Purged . | . . Corruption Blocked . | . . Overload Shots . | . . Overflow Damage . | . . Projectiles . | . . Explosions . | . . Melee . | . . Knockbacks . | . . Impact . | . . Kinetic . | . . Secondary . | . . Self-Inflicted Damage 1 | . 1 Shots . | . . Rammed 1 | . 1 Targets Rammed 1 | . 1 Kicked . | . . Crushed . | . . Highest Temperature 209 | . 209 Average Temperature 57 | . 57 Received Heat Transfer 492 | . 492 Siege Activations . | . . Martial Activations . | . . Shielding Activations . | . . Robots Disrupted . | . . Combat Hostiles . | . . Robots Corrupted . | . . Combat Hostiles . | . . Parts Fried . | . . Impact Corruptions . | . . Robots Melted . | . . Combat Hostiles . | . . Parts Melted . | . . Heat Transferred 800 | . 800 Parts Sabotaged . | . . Parts Stolen . | . . Parts Stripped . | . . Power Chain Reactions . | . . Alert | -11 -10 ------- Run | Yrd Mat Maximum Alert Level . | . . Low Security (%) 100 | 100 100 Level 1 . | . . Level 2 . | . . Level 3 . | . . Level 4 . | . . Level 5 . | . . High Security . | . . Max Security . | . . Peak Influence 101 | 10 101 Initial . | . . Average 15 | 1 20 Influence Increases 300 | 25 275 Destroy 0b10 Robot/C 220 | . 220 Destroy 0b10 Robot/NC 40 | 25 15 Destroy Leader 30 | . 30 Successful Hack 6 | . 6 Destroy Structure 4 | . 4 Influence Decreases 227 | 25 202 Time Decay 153 | 25 128 Lost Part 74 | . 74 Squads Dispatched 1 | . 1 Investigation . | . . Extermination . | . . Reinforcement 1 | . 1 Assault . | . . Garrison . | . . Intercept . | . . Searches Triggered . | . . Construction Impeded . | . . Haulers Reinforced . | . . Active Scanning Responses . | . . Cargo Convoy Interrupts . | . . Stealth | -11 -10 --------- Run | Yrd Mat Distress Signals 1 | . 1 Communications Jammed . | . . Distress Signals . | . . Times Spotted 17 | . 17 Peak Tracking Total 6 | . 6 Tactical Retreats . | . . Traps | -11 -10 ------- Run | Yrd Mat Traps Triggered . | . . Indirectly . | . . Trap Hack Attempts . | . . Triggered . | . . Disarmed . | . . Reprogrammed . | . . Reused . | . . Traps Extracted . | . . Installed . | . . Triggered . | . . Machines | -11 -10 ---------- Run | Yrd Mat Machines Disabled . | . . Max in Single Turn . | . . Machines Repaired . | . . Machines Dismantled . | . . Machines Sabotaged . | . . Overloaded Fab Kills . | . . Hacking | -11 -10 --------- Run | Yrd Mat Machines Accessed 1 | . 1 Terminals 1 | . 1 Fabricators . | . . Repair Stations . | . . Recycling Units . | . . Scanalyzers . | . . Garrison Access . | . . Total Hacks 4 | . 4 Successful 1 | . 1 Failed 3 | . 3 Catastrophic . | . . Database Lockouts . | . . Manual . | . . Terminals 4 | . 4 Fabricators . | . . Repair Stations . | . . Recycling Units . | . . Scanalyzers . | . . Garrison Access . | . . Terminal Hacks 1 | . 1 Recycling Unit Index 1 | . 1 Fabricator Hacks . | . . Repair Station Hacks . | . . Recycling Unit Hacks . | . . Scanalyzer . | . . Garrison Access Hacks . | . . Unauthorized Hacks . | . . Terminals . | . . Fabricators . | . . Repair Stations . | . . Recycling Units . | . . Scanalyzers . | . . Garrison Access . | . . Data Cores Recovered . | . . Used . | . . Hacking Detections 1 | . 1 Full Trace Events . | . . Feedback Events . | . . Feedback Blocked . | . . Robot Schematics Acquired . | . . Robots Built . | . . Authchips . | . . Time . | . . Total Robot Build Rating . | . . Part Schematics Acquired . | . . Parts Built . | . . Authchips . | . . Time . | . . Total Part Build Rating . | . . Part Studies Acquired . | . . Parts Repaired . | . . Time . | . . Parts Recycled . | . . Recycled Matter . | . . Retrieved Matter . | . . Retrieved Components . | . . Parts Scanalyzed . | . . Part Schematics Acquired . | . . Parts Damaged . | . . Bothacking | -11 -10 ------------ Run | Yrd Mat Used RIF Installer . | . . Robots Hacked . | . . Non-combat . | . . Combat . | . . Robot Hacks Applied . | . . Relay Couplers Released . | . . Fabnet Peak Effective % . | . . Robots Rewired . | . . Allies Hacked . | . . Hacks Repelled . | . . Allies | -11 -10 -------- Run | Yrd Mat Total Allies . | . . Largest Group . | . . Highest-Rated Group . | . . Highest-Rated Ally . | . . Total Orders . | . . Ally Attacks . | . . Total Damage . | . . Kills . | . . Allies Corrupted . | . . Allies Melted . | . . Intel | -11 -10 ------- Run | Yrd Mat Active Infowar (turns) 573 | 60 513 Terrain 272 | 60 212 Seismic 486 | . 486 Robot Analysis Total . | . . Derelict Logs Recovered . | . . Drone Launches . | . . Drone Recoveries . | . . Exploration | -11 -10 ------------- Run | Yrd Mat Turns Passed 698 | 185 513 Spaces Moved 437 | 122 315 Core 8 | 5 3 Treads . | . . Legs 157 | 117 40 Wheels 95 | . 95 Hover . | . . Flight 177 | . 177 Fastest Speed 37 | 50 37 Average Speed 83 | 117 70 Slowest Speed 290 | 120 290 Overloaded Moves . | . . Propulsion Burnouts . | . . Robots Hopped . | . . Potential Cave-ins . | . . Cave-ins Triggered . | . . Exploration Rate (%) 26 | 6 47 Regions Visited 1 Branch Regions . Pre-discovered Areas . | . . Known Exits Taken . | . . Unknown Exits Taken 1 | 1 . Scrap Searched . | . . Spaces Dug . | . . Terrain Destroyed 4 | . 4 Melee . | . . Projectile 4 | . 4 AOE . | . . Terrain Rammed . | . . Walls Destroyed . | . . Machines Disabled . | . . Actions | -11 -10 --------- Run | Yrd Mat Total 642 | 145 497 Wait 92 | . 92 Move 436 | 121 315 Hop . | . . Pick Up 9 | 8 1 Fast Attach 14 | 6 8 Attach 5 | 1 4 Detach . | . . Swap 10 | . 10 Drop 3 | . 3 Fire 72 | 9 63 Melee . | . . Ram 1 | . 1 Kick . | . . Crush . | . . Escape Stasis . | . . Rewire . | . . Trap . | . . Miscellaneous . | . . Route ------- -11/Scrapyard -10/Materials (discovered 1 exit: [*Mat]) History --------- Turn | Location | Event 69 | -11/Scrapyard | Discovered new exit (range 15) 186 | -11/Scrapyard | Entered Materials 308 | -10/Materials | Build established: Mutant 429 | -10/Materials | Lost 4 parts (2n1u1w) 480 | -10/Materials | Core integrity fell below 50% 595 | -10/Materials | Discovered new exit (range 7) 623 | -10/Materials | Core integrity fell below 20% 699 | -10/Materials | Destroyed by S-10 Pest with Light Assault Rifle Last Messages --------------- 00670_ R-06 Scavenger collects Sml. Laser. 00672_ K-01 Serf collects debris. 00675_ Acquired 3 matter. 00675_ K-01 Serf collects debris. 00677_ R-06 Scavenger collects Aluminum Leg. 00677_ R-06 Scavenger destroyed. 00678_ Acquired 3 matter. 00679_ K-01 Serf collects debris. 00680_ R-06 Scavenger collects Tractor Beam. 00680_ K-01 Serf destroyed. 00681_ Acquired 3 matter. 00683_ K-01 Serf destroyed. 00684_ Acquired 3 matter. 00691_ Sml. Laser destroyed. 00691_ Acquired Com. Wheel. 00691_ R-06 Scavenger collects Sml. Laser. 00694_ Acquired Wheel. 00695_ R-06 Scavenger collects Com. Wheel. 00696_ Heat Sink destroyed. 00698_ Acquired 25 matter. Map ----- +----------------------------------------------------+ | ?????????????????????????????????????????????????? | | ?????????????????????????????????????????????????? | | ?????????????????????????????????????????????????? | | ?????????????????????????????????????????????????? | | ??????????????????????????????????????????????#### | | ?????????????????????????????????????########## T | | ?????????????????????????????????????# !![+ + | | ??????????????###############????????# !! ### | | ??????????????# # #????????# !! #?# | | ??????????????# # < #????????# #?# | | ??????????????# # ks#????????# #?# | | ??????????????# / #????????# #?# | | ??????????????# # #????????####+###?# | | ??????????????# # #?????????# ###### | | ??????????????# # s ########### | | ??????????????# #s T | | ??????????????########### ########### | | ??????????????# # #?????????# ! ##/### | | ??????????????# + #?????????### ###????? | | ??????????????# # #???????????# #??????? | | ??????????????# + #########???# #??#??"? | | ??????????????# # # """ """ ??# #??????? | | ??????????????########### # """ """ #?# #???? ? | | ??????????????########??#=%=# """ """ #?# #??????? | | ??????????????# #r # #?# ??????? | | ??????????????# /@ %+% #?# ??????? | | ??????????????+ t # % #% #?? ??????? | | ??????????????# # # #?? ??????? | | ??????????????# ?# # #?? ??????? | | ??????????????# ?# ###########?? ??????? | | ??????????????# ??# #???????????? ??? ?"? | | ??????????????? ? ???# #???????????? ??#???? | | ???????????????##??##???# #???????????# ?????? | | ????????????????????????# #???????????# ##### | | ????????????????????????# #???????????# | | ????????????????????????# #???????????# | | ???????????????????????? ?????????? | | ???????????????????????? ?????????? | | ???????????????????????? T ?????????? | | ???????????????????????? ?????????? | | ???????????????????????? ? ???????????########## | | ?????????????????????????????????????????????????? | | ??????????????????????????????????????????????#??? | | ????????????????????????????????????????????????#? | | ????????????????????????????????????????????#????? | | ?????????????????????????????????????????????????? | | ???????????????????????????????????????????????#?? | | ???????????????????????????????????????????#?????? | | ?????????????????????????????????????????????????? | | ?????????????????????????????????????????????????? | +----------------------------------------------------+ Best States ------------- Heat Dissipation 35 Energy Generation 10 Energy Capacity 250 Matter Stores 300 Matter Capacity 300 Sight Range 16 Terrain Scan Range 16 Terrain Scan Density 10 Evasion (%) 62 Item Schematics ----------------- None Robot Schematics ------------------ None Fabricated ------------ Nothing Repaired ---------- Nothing Studied --------- None Alien Tech Used ----------------- None Achievements -------------- None Challenges ------------ None Game ------ Seed StormMultireflexRay Manual? 0 Play Time 00:13:46 Cumulative 17.1 hours Start 2026.03.11 @ 09:24:25 End 2026.03.11 @ 09:34:56 Sessions 1 Manual Loads 0 Difficulty Rogue Special Mode None Game No. 32 Rogue 32 Adventurer 0 Explorer 0 Win Type - Total 0 Types 0/0/0/0/0/0/0/0/0/0 Lore% 22 Gallery% 18 Achievement% 15 Wizard Run 0 Options --------- Layout 1 ASCII 0 Keyboard 0 Movement Numpad Keybinds 0 Fullscreen 1 Font 24/Smallcaps Map View 50x35 Zoom Use 0% Tactical HUD 1 Map Filters NONE Filters NONE Steam 1 RUN: 59f6a490-4607-4b17-bd82-eeb6c5be78a7